[Event "CCCSA GM Norm A 2019"]
[Site "Charlotte"]
[Date "2019.06.06"]
[Round "2.1"]
[White "Ringoir, Tanguy"]
[Black "Ostrovskiy, Aleksandr"]
[Result "1/2-1/2"]
[ECO "E04"]
[WhiteElo "2500"]
[BlackElo "2437"]
[Annotator "RC"]
[PlyCount "29"]
[EventDate "2019.06.05"]
[EventType "tourn"]
[EventCountry "USA"]
[SourceTitle "playchess.com"]
[Source "ChessBase"]
[SourceQuality "1"]
[TimeControl "5400+30"]

1. d4 {[%emt 0:00:00]} d5 {[%emt 0:02:47]} 2. c4 {[%emt 0:00:00]} e6 {[%emt 0:00:29]} 3. Nf3 {[%emt 0:00:00]} Nf6 {[%emt 0:00:12]} 4. g3 {[%emt 0:00:00]} dxc4 {[%emt 0:02:14]} 5. Bg2 {[%emt 0:00:00]} Bb4+ {[%emt 0:00:41]} 6. Bd2 {[%emt 0:00:07]} c5 {[%emt 0:00:10]} 7. Bxb4 {[%emt 0:00:33]} cxb4 {[%emt 0:00:08]} 8. Ne5 {[%emt 0:00:04]} O-O {[%emt 0:01:20]} 9. a3 {[%emt 0:00:04]} Nd5 {[%emt 0:01:17]} 10. Nxc4 {[%emt 0:10:44]} b5 {[%emt 0:01:22]} 11. Ne5 {[%emt 0:01:44]} Bb7 {[%emt 0:00:56]} 12. O-O {[%emt 0:00:27]} bxa3 {[%emt 0:17:49]} 13. Nxa3 {[%emt 0:01:15]} a6 {[%emt 0:00:52]} 14. Nc2 {[%emt 0:03:28]} Nd7 {[%emt 0:07:20]} 15. Nd3 {[%emt 0:01:02]} 1/2-1/2

[Event "CCCSA GM Norm A 2019"]
[Site "Charlotte"]
[Date "2019.06.07"]
[Round "3.1"]
[White "Korley, Kassa"]
[Black "Ringoir, Tanguy"]
[Result "1/2-1/2"]
[ECO "A14"]
[WhiteElo "2430"]
[BlackElo "2500"]
[Annotator "RC"]
[PlyCount "20"]
[EventDate "2019.06.05"]
[EventType "tourn"]
[EventCountry "USA"]
[SourceTitle "playchess.com"]
[Source "ChessBase"]
[SourceQuality "1"]
[TimeControl "5400+30"]

1. Nf3 {[%emt 0:03:36]} d5 {[%emt 0:00:00]} 2. g3 {[%emt 0:00:03]} Nf6 {[%emt 0:00:00]} 3. Bg2 {[%emt 0:00:07]} e6 {[%emt 0:00:00]} 4. O-O {[%emt 0:00:12]} Be7 {[%emt 0:00:00]} 5. c4 {[%emt 0:00:19]} O-O {[%emt 0:00:00]} 6. d3 {[%emt 0:00:16]} c5 {[%emt 0:00:11]} 7. cxd5 {[%emt 0:00:08]} Nxd5 {[%emt 0:00:05]} 8. d4 {[%emt 0:06:42]} cxd4 {[%emt 0:00:06]} 9. Nxd4 {[%emt 0:00:04]} Nc6 {[%emt 0:00:05]} 10. Nxc6 {[%emt 0:08:44]} bxc6 {[%emt 1:34:33]} 1/2-1/2

[Event "CCCSA GM Norm A 2019"]
[Site "Charlotte"]
[Date "2019.06.07"]
[Round "3.4"]
[White "Jacobson, Brandon"]
[Black "Gauri, Shankar"]
[Result "1-0"]
[ECO "D12"]
[WhiteElo "2486"]
[BlackElo "2378"]
[Annotator "RC"]
[PlyCount "67"]
[EventDate "2019.06.05"]
[EventType "tourn"]
[EventCountry "USA"]
[SourceTitle "playchess.com"]
[Source "ChessBase"]
[SourceQuality "1"]
[TimeControl "5400+30"]

1. c4 {[%emt 0:04:46]} c6 {[%emt 0:02:14]} 2. Nf3 {[%emt 0:00:18]} d5 {[%emt 0:00:09]} 3. d4 {[%emt 0:02:41]} Nf6 {[%emt 0:00:14]} 4. e3 {[%emt 0:00:03]} Bf5 {[%emt 0:03:33]} 5. Nc3 {[%emt 0:00:10]} e6 {[%emt 0:00:06]} 6. Nh4 {[%emt 0:00:05]} Be4 {[%emt 0:02:59]} 7. f3 {[%emt 0:00:06]} Bg6 {[%emt 0:00:05]} 8. Qb3 {[%emt 0:00:04]} Qc7 {[%emt 0:01:15]} 9. Bd2 {[%emt 0:00:05]} Be7 {[%emt 0:01:41]} 10. cxd5 {[%emt 0:01:00]} cxd5 {[%emt 0:04:23]} 11. Nxg6 {[%emt 0:00:27]} hxg6 {[%emt 0:00:05]} 12. O-O-O {[%emt 0:00:04]} Nc6 {[%emt 0:03:21]} 13. Kb1 {[%emt 0:00:04]} O-O {[%emt 0:07:47]} 14. Rc1 {[%emt 0:10:40]} a6 {[%emt 0:16:54]} 15. Qd1 {[%emt 0:01:28]} Rac8 {[%emt 0:16:35]} 16. g4 {[%emt 0:00:34]} b5 {[%emt 0:10:45]} 17. g5 {[%emt 0:05:30]} Ne8 {[%emt 0:06:16]} 18. e4 {[%emt 0:04:38]} dxe4 {[%emt 0:04:13]} 19. fxe4 {[%emt 0:13:07]} Qd8 {[%emt 0:03:31]} 20. d5 {[%emt 0:05:17]} Ne5 {[%emt 0:03:13]} 21. Bf4 {[%emt 0:20:59]} Nc4 {[%emt 0:00:14]} 22. h4 {[%emt 0:07:31]} e5 {[%emt 0:04:57]} 23. Bxc4 {[%emt 0:02:25]} exf4 {[%emt 0:01:58]} 24. Bb3 {[%emt 0:00:01]} Bd6 {[%emt 0:00:23]} 25. Qg4 {[%emt 0:00:28]} b4 {[%emt 0:00:28]} 26. h5 {[%emt 0:03:38]} bxc3 {[%emt 0:01:19]} 27. hxg6 {[%emt 0:00:05]} fxg6 {[%emt 0:01:44]} 28. Qe6+ {[%emt 0:00:02]} Rf7 {[%emt 0:00:08]} 29. Rh8+ {[%emt 0:00:38]} Kxh8 {[%emt 0:00:01]} 30. Qxf7 {[%emt 0:00:04]} c2+ {[%emt 0:03:50]} 31. Bxc2 {[%emt 0:00:10]} Qxg5 {[%emt 0:00:28]} 32. Rh1+ {[%emt 0:00:05]} Qh5 {[%emt 0:00:38]} 33. Rxh5+ {[%emt 0:00:05]} gxh5 {[%emt 0:00:03]} 34. e5 {[%emt 0:00:12]} 1-0

[Event "CCCSA GM Norm A 2019"]
[Site "Charlotte"]
[Date "2019.06.07"]
[Round "4.2"]
[White "Gauri, Shankar"]
[Black "Grigoryan, Karen H."]
[Result "0-1"]
[ECO "E04"]
[WhiteElo "2378"]
[BlackElo "2547"]
[Annotator "RC"]
[PlyCount "88"]
[EventDate "2019.06.05"]
[EventType "tourn"]
[EventCountry "USA"]
[SourceTitle "playchess.com"]
[Source "ChessBase"]
[SourceQuality "1"]
[TimeControl "5400+30"]

1. Nf3 {[%emt 0:06:13]} Nf6 {[%emt 0:00:52]} 2. c4 {[%emt 0:01:19]} e6 {[%emt 0:00:15]} 3. g3 {[%emt 0:00:37]} d5 {[%emt 0:00:25]} 4. d4 {[%emt 0:00:33]} dxc4 {[%emt 0:02:39]} 5. Bg2 {[%emt 0:00:29]} Nc6 {[%emt 0:00:53]} 6. Qa4 {[%emt 0:06:45]} Bb4+ {[%emt 0:00:43]} 7. Bd2 {[%emt 0:00:19]} Nd5 {[%emt 0:00:58]} 8. Bxb4 {[%emt 0:03:27]} Ndxb4 {[%emt 0:00:16]} 9. O-O {[%emt 0:13:46]} Rb8 {[%emt 0:07:12]} 10. Na3 {[%emt 0:09:52]} O-O {[%emt 0:01:21]} 11. Qb5 {[%emt 0:01:36]} b6 {[%emt 0:02:25]} 12. Qxc4 {[%emt 0:05:42]} Ba6 {[%emt 0:05:39]} 13. Nb5 {[%emt 0:45:52]} Qd5 {[%emt 0:01:55]} 14. Qxd5 {[%emt 0:00:00]} Nxd5 {[%emt 0:02:25]} 15. a4 {[%emt 0:00:00]} Na5 {[%emt 0:03:08]} 16. Ne5 {[%emt 0:00:00]} Rbd8 {[%emt 0:04:36]} 17. Bxd5 {[%emt 0:00:00]} Bxb5 {[%emt 0:04:18]} 18. Bf3 {[%emt 0:00:00]} Ba6 {[%emt 0:00:40]} 19. Rac1 {[%emt 0:00:00]} c5 {[%emt 0:12:14]} 20. dxc5 {[%emt 0:00:00]} Nb3 {[%emt 0:00:04]} 21. c6 {[%emt 0:00:00]} Nxc1 {[%emt 0:00:11]} 22. Rxc1 {[%emt 0:00:00]} f6 {[%emt 0:02:53]} 23. Nd7 {[%emt 0:00:00]} Rf7 {[%emt 0:01:58]} 24. a5 {[%emt 0:01:20]} bxa5 {[%emt 0:01:05]} 25. Nc5 {[%emt 0:03:08]} Bc8 {[%emt 0:00:32]} 26. Ra1 {[%emt 0:01:24]} e5 {[%emt 0:00:23]} 27. g4 {[%emt 0:00:29]} g6 {[%emt 0:04:22]} 28. Nb7 {[%emt 0:00:35]} Rd2 {[%emt 0:12:06]} 29. Rxa5 {[%emt 0:00:02]} Rc7 {[%emt 0:00:07]} 30. b4 {[%emt 0:00:39]} Rd1+ {[%emt 0:02:47]} 31. Kg2 {[%emt 0:00:01]} Rd4 {[%emt 0:00:06]} 32. Bd5+ {[%emt 0:01:02]} Kf8 {[%emt 0:02:45]} 33. e4 {[%emt 0:00:36]} Rxb4 {[%emt 0:04:42]} 34. Rxa7 {[%emt 0:00:01]} f5 {[%emt 0:01:08]} 35. Ra8 {[%emt 0:00:47]} Ke7 {[%emt 0:00:12]} 36. gxf5 {[%emt 0:00:53]} gxf5 {[%emt 0:00:02]} 37. exf5 {[%emt 0:00:29]} Rd4 {[%emt 0:01:01]} 38. f6+ {[%emt 0:00:20]} Kxf6 {[%emt 0:00:07]} 39. Ra5 {[%emt 0:00:42]} Rg7+ {[%emt 0:02:24]} 40. Kf3 {[%emt 0:00:16]} Rg1 {[%emt 0:00:09]} 41. Ke2 {[%emt 0:00:44]} Bh3 {[%emt 0:00:52]} 42. Nc5 {[%emt 0:00:31]} Rxd5 {[%emt 0:01:11]} 43. Ne4+ {[%emt 0:00:26]} Ke6 {[%emt 0:01:15]} 44. c7 {[%emt 0:00:33]} Bf1+ {[%emt 0:00:11]} 0-1

[Event "CCCSA GM Norm A 2019"]
[Site "Charlotte"]
[Date "2019.06.08"]
[Round "5.1"]
[White "Jacobson, Brandon"]
[Black "Ringoir, Tanguy"]
[Result "0-1"]
[ECO "A21"]
[WhiteElo "2486"]
[BlackElo "2500"]
[Annotator "RC"]
[PlyCount "104"]
[EventDate "2019.06.05"]
[EventType "tourn"]
[EventCountry "USA"]
[SourceTitle "playchess.com"]
[Source "ChessBase"]
[SourceQuality "1"]
[TimeControl "5400+30"]

1. c4 {[%emt 0:06:49]} e5 {[%emt 0:00:00]} 2. Nc3 {[%emt 0:00:13]} Bb4 {[%emt 0:00:00]} 3. Nd5 {[%emt 0:00:14]} Bc5 {[%emt 0:00:00]} 4. Nf3 {[%emt 0:00:17]} c6 {[%emt 0:00:09]} 5. Nc3 {[%emt 0:00:05]} d6 {[%emt 0:00:03]} 6. e3 {[%emt 0:00:06]} Qe7 {[%emt 0:00:04]} 7. d4 {[%emt 0:01:34]} exd4 {[%emt 0:00:06]} 8. Nxd4 {[%emt 0:00:05]} Nf6 {[%emt 0:00:04]} 9. Be2 {[%emt 0:00:04]} O-O {[%emt 0:00:04]} 10. O-O {[%emt 0:00:05]} d5 {[%emt 0:00:03]} 11. cxd5 {[%emt 0:00:06]} cxd5 {[%emt 0:00:04]} 12. b3 {[%emt 0:11:38]} Nc6 {[%emt 0:00:06]} 13. Nxc6 {[%emt 0:00:06]} bxc6 {[%emt 0:00:03]} 14. Bb2 {[%emt 0:00:07]} Bd6 {[%emt 0:00:03]} 15. Rc1 {[%emt 0:01:46]} Bd7 {[%emt 0:00:01]} 16. Bf3 {[%emt 0:03:42]} Rfe8 {[%emt 0:00:02]} 17. Re1 {[%emt 0:06:42]} h5 {[%emt 0:00:08]} 18. g3 {[%emt 0:17:25]} Ng4 {[%emt 0:00:27]} 19. Rc2 {[%emt 0:04:59]} Qg5 {[%emt 0:07:56]} 20. e4 {[%emt 0:12:47]} h4 {[%emt 0:03:44]} 21. exd5 {[%emt 0:03:55]} Nxh2 {[%emt 0:04:52]} 22. Ne4 {[%emt 0:09:37]} Nxf3+ {[%emt 0:42:09]} 23. Qxf3 {[%emt 0:00:03]} Qg6 {[%emt 0:00:05]} 24. Rce2 {[%emt 0:11:24]} Bf8 {[%emt 0:00:02]} 25. Qd3 {[%emt 0:04:27]} hxg3 {[%emt 0:09:21]} 26. Qxg3 {[%emt 0:00:04]} Qxg3+ {[%emt 0:00:34]} 27. Nxg3 {[%emt 0:00:11]} cxd5 {[%emt 0:00:06]} 28. Rxe8 {[%emt 0:00:23]} Rxe8 {[%emt 0:00:02]} 29. Rxe8 {[%emt 0:00:55]} Bxe8 {[%emt 0:00:01]} 30. Bd4 {[%emt 0:00:12]} a6 {[%emt 0:00:02]} 31. f3 {[%emt 0:03:40]} f6 {[%emt 0:00:10]} 32. Kf2 {[%emt 0:00:02]} Kf7 {[%emt 0:00:03]} 33. Ke3 {[%emt 0:00:23]} Ke6 {[%emt 0:00:02]} 34. Ne2 {[%emt 0:01:11]} g5 {[%emt 0:00:01]} 35. a4 {[%emt 0:01:21]} Bd6 {[%emt 0:04:03]} 36. Bc3 {[%emt 0:00:19]} Bd7 {[%emt 0:02:01]} 37. Bd4 {[%emt 0:00:19]} Be5 {[%emt 0:00:57]} 38. Bc5 {[%emt 0:00:49]} Kf5 {[%emt 0:00:44]} 39. Nd4+ {[%emt 0:00:44]} Kg6 {[%emt 0:00:01]} 40. Ne2 {[%emt 0:00:03]} Kh5 {[%emt 0:00:45]} 41. Bd4 {[%emt 0:00:37]} Kh4 {[%emt 0:05:33]} 42. Nc3 {[%emt 0:00:07]} Bxd4+ {[%emt 0:02:07]} 43. Kxd4 {[%emt 0:00:01]} Kg3 {[%emt 0:00:04]} 44. Nxd5 {[%emt 0:01:37]} f5 {[%emt 0:00:02]} 45. Nf6 {[%emt 0:00:32]} Bc8 {[%emt 0:09:57]} 46. Ke3 {[%emt 0:00:40]} a5 {[%emt 0:00:10]} 47. Nh7 {[%emt 0:00:31]} f4+ {[%emt 0:01:19]} 48. Kd2 {[%emt 0:00:24]} Kh4 {[%emt 0:00:22]} 49. Nf6 {[%emt 0:00:37]} Bb7 {[%emt 0:00:03]} 50. Nd7 {[%emt 0:00:30]} Bxf3 {[%emt 0:00:10]} 51. Ne5 {[%emt 0:00:27]} Bd5 {[%emt 0:00:40]} 52. Nc4 {[%emt 0:00:31]} g4 {[%emt 0:00:16]} 0-1

[Event "CCCSA GM Norm A 2019"]
[Site "Charlotte"]
[Date "2019.06.08"]
[Round "5.2"]
[White "Yoo, Christopher Woojin"]
[Black "Ostrovskiy, Aleksandr"]
[Result "0-1"]
[ECO "B12"]
[WhiteElo "2430"]
[BlackElo "2437"]
[Annotator "ChessBase"]
[PlyCount "190"]
[EventDate "2019.06.05"]
[EventType "tourn"]
[EventCountry "USA"]
[SourceTitle "playchess.com"]
[Source "ChessBase"]
[SourceQuality "1"]
[TimeControl "5400+30"]

1. e4 {[%emt 0:02:39]} c6 {[%emt 0:04:21]} 2. d4 {[%emt 0:00:07]} d5 {[%emt 0:00:18]} 3. e5 {[%emt 0:00:03]} c5 {[%emt 0:01:33]} 4. dxc5 {[%emt 0:00:07]} e6 {[%emt 0:00:07]} 5. a3 {[%emt 0:00:03]} Bxc5 {[%emt 0:03:07]} 6. b4 {[%emt 0:00:21]} Be7 {[%emt 0:01:07]} 7. Nf3 {[%emt 0:02:40]} a5 {[%emt 0:01:43]} 8. b5 {[%emt 0:00:19]} Nd7 {[%emt 0:00:34]} 9. Be2 {[%emt 0:13:07]} f6 {[%emt 0:02:39]} 10. exf6 {[%emt 0:06:03]} Bxf6 {[%emt 0:02:57]} 11. Ra2 {[%emt 0:01:11]} Qc7 {[%emt 0:19:32]} 12. c4 {[%emt 0:23:09]} Ne7 {[%emt 0:19:41]} 13. Rc2 {[%emt 0:08:01]} Nc5 {[%emt 0:02:33]} 14. cxd5 {[%emt 0:07:15]} Nxd5 {[%emt 0:07:02]} 15. Bc4 {[%emt 0:04:58]} b6 {[%emt 0:05:14]} 16. Bxd5 {[%emt 0:05:44]} exd5 {[%emt 0:00:13]} 17. O-O {[%emt 0:04:30]} O-O {[%emt 0:05:41]} 18. Qxd5+ {[%emt 0:06:37]} Be6 {[%emt 0:01:39]} 19. Rxc5 {[%emt 0:04:50]} Qe7 {[%emt 0:09:47]} 20. Qe4 {[%emt 0:03:31]} bxc5 {[%emt 0:00:05]} 21. Ng5 {[%emt 0:01:03]} Bxg5 {[%emt 0:00:28]} 22. Bxg5 {[%emt 0:00:21]} Qf7 {[%emt 0:05:28]} 23. Nd2 {[%emt 0:02:36]} Bd5 {[%emt 0:00:23]} 24. Qd3 {[%emt 0:01:13]} c4 {[%emt 0:01:11]} 25. Qg3 {[%emt 0:01:26]} Rac8 {[%emt 0:01:26]} 26. Nb1 {[%emt 0:00:08]} Rfe8 {[%emt 0:02:13]} 27. Nc3 {[%emt 0:00:14]} Bb7 {[%emt 0:00:20]} 28. f4 {[%emt 0:01:04]} Qf5 {[%emt 0:00:42]} 29. Rd1 {[%emt 0:00:23]} Qc5+ {[%emt 0:00:56]} 30. Qf2 {[%emt 0:00:28]} Qxa3 {[%emt 0:00:31]} 31. Qd4 {[%emt 0:00:35]} Qb2 {[%emt 0:00:56]} 32. Qd2 {[%emt 0:00:36]} Qxd2 {[%emt 0:00:44]} 33. Rxd2 {[%emt 0:00:05]} Re3 {[%emt 0:00:34]} 34. Rc2 {[%emt 0:00:16]} h6 {[%emt 0:00:37]} 35. Bh4 {[%emt 0:00:07]} Rd3 {[%emt 0:00:28]} 36. Kf2 {[%emt 0:00:43]} Re8 {[%emt 0:00:37]} 37. Na4 {[%emt 0:00:40]} c3 {[%emt 0:00:28]} 38. Rxc3 {[%emt 0:00:46]} Rd2+ {[%emt 0:00:16]} 39. Kg3 {[%emt 0:00:29]} Rxg2+ {[%emt 0:00:20]} 40. Kh3 {[%emt 0:00:04]} Rg1 {[%emt 0:00:53]} 41. Bg3 {[%emt 0:01:23]} Rb1 {[%emt 0:00:28]} 42. Rc5 {[%emt 0:00:08]} Bc8+ {[%emt 0:00:34]} 43. Kh4 {[%emt 0:00:52]} Bd7 {[%emt 0:00:30]} 44. Nc3 {[%emt 0:00:31]} Rb3 {[%emt 0:00:22]} 45. Bf2 {[%emt 0:00:29]} Rc8 {[%emt 0:00:35]} 46. Rd5 {[%emt 0:00:23]} Be6 {[%emt 0:00:32]} 47. Re5 {[%emt 0:00:13]} Rcxc3 {[%emt 0:00:30]} 48. Rxe6 {[%emt 0:00:05]} Rxb5 {[%emt 0:00:27]} 49. Bd4 {[%emt 0:00:18]} Rc4 {[%emt 0:00:25]} 50. Rd6 {[%emt 0:00:36]} Rbb4 {[%emt 0:00:36]} 51. Be5 {[%emt 0:00:19]} Rxf4+ {[%emt 0:00:25]} 52. Bxf4 {[%emt 0:00:06]} Rxf4+ {[%emt 0:00:01]} 53. Kg3 {[%emt 0:00:39]} Ra4 {[%emt 0:00:50]} 54. Ra6 {[%emt 0:00:35]} Kh7 {[%emt 0:00:24]} 55. h4 {[%emt 0:01:48]} h5 {[%emt 0:00:45]} 56. Kh3 {[%emt 0:00:17]} g6 {[%emt 0:00:25]} 57. Ra7+ {[%emt 0:00:33]} Kg8 {[%emt 0:00:05]} 58. Ra6 {[%emt 0:00:22]} Kf7 {[%emt 0:00:07]} 59. Ra7+ {[%emt 0:00:31]} Kf6 {[%emt 0:00:05]} 60. Ra8 {[%emt 0:00:09]} Ra3+ {[%emt 0:00:42]} 61. Kh2 {[%emt 0:00:30]} Kf5 {[%emt 0:00:12]} 62. Ra6 {[%emt 0:00:11]} Ra2+ {[%emt 0:01:11]} 63. Kg3 {[%emt 0:00:43]} Ra4 {[%emt 0:00:09]} 64. Kh3 {[%emt 0:00:05]} Ra1 {[%emt 0:00:33]} 65. Kh2 {[%emt 0:00:49]} Ra3 {[%emt 0:01:13]} 66. Kg2 {[%emt 0:00:10]} Ra1 {[%emt 0:00:36]} 67. Kh2 {[%emt 0:00:48]} g5 {[%emt 0:00:50]} 68. hxg5 {[%emt 0:00:25]} Kxg5 {[%emt 0:00:02]} 69. Ra8 {[%emt 0:00:44]} Ra2+ {[%emt 0:00:47]} 70. Kh3 {[%emt 0:00:20]} Ra1 {[%emt 0:00:25]} 71. Ra7 {[%emt 0:01:13]} a4 {[%emt 0:00:16]} 72. Ra5+ {[%emt 0:00:11]} Kf4 {[%emt 0:00:07]} 73. Kg2 {[%emt 0:00:34]} h4 {[%emt 0:00:26]} 74. Kh3 {[%emt 0:00:50]} a3 {[%emt 0:00:55]} 75. Ra8 {[%emt 0:00:28]} Ke4 {[%emt 0:01:00]} 76. Kg2 {[%emt 0:00:30]} Kd3 {[%emt 0:00:24]} 77. Rf8 {[%emt 0:00:36]} Re1 {[%emt 0:00:33]} 78. Ra8 {[%emt 0:00:22]} Re2+ {[%emt 0:00:31]} 79. Kf3 {[%emt 0:00:37]} Ra2 {[%emt 0:00:11]} 80. Rf8 {[%emt 0:00:32]} Kc3 {[%emt 0:00:53]} 81. Rc8+ {[%emt 0:00:28]} Kb2 {[%emt 0:00:29]} 82. Rb8+ {[%emt 0:00:30]} Ka1 {[%emt 0:00:31]} 83. Rb3 {[%emt 0:00:31]} h3 {[%emt 0:00:26]} 84. Re3 {[%emt 0:00:19]} h2 {[%emt 0:00:34]} 85. Re1+ {[%emt 0:00:05]} Kb2 {[%emt 0:00:04]} 86. Kg2 {[%emt 0:00:32]} h1=Q+ {[%emt 0:01:30]} 87. Rxh1 {[%emt 0:00:08]} Kb3+ {[%emt 0:00:00]} 88. Kf3 {[%emt 0:00:42]} Rb2 {[%emt 0:00:07]} 89. Re1 {[%emt 0:00:07]} a2 {[%emt 0:00:21]} 90. Re3+ {[%emt 0:00:04]} Ka4 {[%emt 0:00:24]} 91. Re7 {[%emt 0:00:12]} Rb3+ {[%emt 0:00:50]} 92. Ke2 {[%emt 0:00:34]} Ra3 {[%emt 0:00:11]} 93. Ra7+ {[%emt 0:00:24]} Kb4 {[%emt 0:00:07]} 94. Rb7+ {[%emt 0:00:04]} Kc5 {[%emt 0:00:09]} 95. Rc7+ {[%emt 0:00:05]} Kd6 {[%emt 0:00:10]} 0-1

[Event "CCCSA GM Norm A 2019"]
[Site "Charlotte"]
[Date "2019.06.08"]
[Round "5.3"]
[White "Korley, Kassa"]
[Black "Zierk, Steven"]
[Result "0-1"]
[ECO "A11"]
[WhiteElo "2430"]
[BlackElo "2501"]
[Annotator "RC"]
[PlyCount "118"]
[EventDate "2019.06.05"]
[EventType "tourn"]
[EventCountry "USA"]
[SourceTitle "playchess.com"]
[Source "ChessBase"]
[SourceQuality "1"]
[TimeControl "5400+30"]

1. Nf3 {[%emt 1:30:30]} d5 {[%emt 0:00:00]} 2. g3 {[%emt 0:00:00]} Nf6 {[%emt 0:00:00]} 3. Bg2 {[%emt 0:00:00]} c6 {[%emt 0:00:15]} 4. O-O {[%emt 0:00:00]} Bf5 {[%emt 0:00:13]} 5. d3 {[%emt 0:00:00]} h6 {[%emt 0:00:23]} 6. c4 {[%emt 0:00:00]} e6 {[%emt 0:02:49]} 7. Qb3 {[%emt 0:00:00]} Qb6 {[%emt 0:00:27]} 8. Be3 {[%emt 0:00:00]} Qxb3 {[%emt 0:00:54]} 9. axb3 {[%emt 0:00:00]} a6 {[%emt 0:00:33]} 10. h3 {[%emt 0:00:00]} Nbd7 {[%emt 0:01:13]} 11. Nd4 {[%emt 0:00:00]} Bh7 {[%emt 0:01:33]} 12. f4 {[%emt 0:00:00]} Bd6 {[%emt 0:05:47]} 13. Bf2 {[%emt 0:00:00]} O-O {[%emt 0:07:28]} 14. Nc3 {[%emt 0:00:00]} Rfe8 {[%emt 0:12:56]} 15. cxd5 {[%emt 0:00:00]} exd5 {[%emt 0:02:22]} 16. Bf3 {[%emt 0:00:00]} g5 {[%emt 0:02:18]} 17. fxg5 {[%emt 0:00:00]} hxg5 {[%emt 0:00:01]} 18. Kg2 {[%emt 0:00:00]} Ne5 {[%emt 0:02:42]} 19. Nc2 {[%emt 0:00:00]} g4 {[%emt 0:04:50]} 20. hxg4 {[%emt 0:00:00]} Nfxg4 {[%emt 0:00:13]} 21. Bxg4 {[%emt 0:00:00]} Nxg4 {[%emt 0:00:04]} 22. Bb6 {[%emt 0:00:00]} Re5 {[%emt 0:05:13]} 23. Ra4 {[%emt 0:00:00]} Rg5 {[%emt 0:02:44]} 24. Rh1 {[%emt 0:00:00]} Re8 {[%emt 0:05:21]} 25. Rh4 {[%emt 0:00:00]} Nf6 {[%emt 0:02:10]} 26. Bf2 {[%emt 0:00:00]} c5 {[%emt 0:01:58]} 27. Ra5 {[%emt 0:00:00]} Bf5 {[%emt 0:10:21]} 28. Rxc5 {[%emt 0:00:00]} Bxc5 {[%emt 0:01:41]} 29. Bxc5 {[%emt 0:00:00]} Rh5 {[%emt 0:02:55]} 30. Rxh5 {[%emt 0:00:00]} Nxh5 {[%emt 0:00:04]} 31. Ne3 {[%emt 0:00:00]} Be6 {[%emt 0:00:37]} 32. Kf3 {[%emt 0:00:00]} Rd8 {[%emt 0:01:17]} 33. Bd4 {[%emt 0:00:00]} Kh7 {[%emt 0:00:59]} 34. Na4 {[%emt 0:00:00]} Kg6 {[%emt 0:04:55]} 35. Nc5 {[%emt 0:00:00]} Bc8 {[%emt 0:00:30]} 36. b4 {[%emt 0:00:00]} Ng7 {[%emt 0:01:17]} 37. Be5 {[%emt 0:00:00]} Ne6 {[%emt 0:00:46]} 38. Nxe6 {[%emt 0:00:00]} Bxe6 {[%emt 0:00:15]} 39. Nc2 {[%emt 0:00:00]} Re8 {[%emt 0:00:39]} 40. Bc3 {[%emt 0:00:00]} Kh5 {[%emt 0:01:16]} 41. Ne3 {[%emt 0:00:00]} Kg5 {[%emt 0:00:27]} 42. Bd2 {[%emt 0:00:00]} Kg6 {[%emt 0:00:31]} 43. Bc3 {[%emt 0:00:00]} Kh5 {[%emt 0:01:43]} 44. Kf4 {[%emt 0:00:00]} Kg6 {[%emt 0:00:53]} 45. Nc2 {[%emt 0:00:00]} f6 {[%emt 0:01:18]} 46. Nd4 {[%emt 0:00:00]} Bd7 {[%emt 0:00:26]} 47. Kf3 {[%emt 0:00:00]} Kh5 {[%emt 0:00:37]} 48. Kf4 {[%emt 0:00:00]} Bg4 {[%emt 0:03:05]} 49. e3 {[%emt 0:00:00]} Bh3 {[%emt 0:01:05]} 50. Nb3 {[%emt 0:00:00]} Kg6 {[%emt 0:01:09]} 51. Nc5 {[%emt 0:00:00]} Bg2 {[%emt 0:03:26]} 52. g4 {[%emt 0:00:00]} Re7 {[%emt 0:00:44]} 53. Kg3 {[%emt 0:00:00]} Bf1 {[%emt 0:00:29]} 54. Kf2 {[%emt 0:00:00]} Bh3 {[%emt 0:00:38]} 55. e4 {[%emt 0:00:00]} b6 {[%emt 0:02:42]} 56. exd5 {[%emt 0:00:00]} bxc5 {[%emt 0:00:05]} 57. d6 {[%emt 0:00:00]} Re8 {[%emt 0:03:37]} 58. bxc5 {[%emt 0:00:00]} Bxg4 {[%emt 0:00:03]} 59. c6 {[%emt 0:00:00]} Rc8 {[%emt 0:00:39]} 0-1